bitfinex/quotes_SOLUSD_20251214
["timestamp","ask_amount","ask_price","bid_price","bid_amount"]
[1765724913168,0.68,130.92,130.91,0.2]
[1765724915683,16.67742625,130.94,130.91,0.87]
[1765724915995,8.3166233,130.95,130.91,8.50865595]
[1765724916196,0.68,130.96,130.92,4.45954168]
[1765724916396,3.78954168,130.97,130.92,4.45954168]
[1765724916602,8.36,130.97,130.93,4.45954168]
[1765724917098,8.36,130.97,130.94,0.67]
[1765724917300,9.04,130.97,130.94,0.67]
[1765724917679,9.04,130.97,130.94,8.30669236]
[1765724918402,8.36,130.97,130.95,0.67]
[1765724919187,12.82954168,130.99,130.95,0.67]
[1765724919389,9.04,130.99,130.95,4.45954168]
[1765724919586,9.04,130.99,130.96,0.67]
[1765724919902,9.04,130.99,130.96,12.09490625]
[1765724919903,8.36,130.99,130.96,12.09490625]
[1765724920400,8.36,130.99,130.97,0.67]
[1765724921374,12.10274643,131.01,130.97,8.30516396]
[1765724921575,8.36,131.0,130.97,8.30516396]
[1765724921981,8.36,131.0,130.97,7.63516396]
[1765724922182,8.36,131.0,130.98,0.67]
[1765724922400,9.04,131.0,130.97,8.30516396]
[1765724923702,12.14954168,131.0,130.97,7.63516396]
[1765724924008,0.68,130.99,130.97,7.63516396]
[1765724924723,0.68,130.99,130.96,8.30573037]
[1765724925720,20.46322381,131.0,130.97,0.67]
[1765724926706,16.67368213,131.0,130.97,0.67]
[1765724926926,16.67368213,131.0,130.97,8.30532509]
[1765724927133,0.68,130.99,130.96,12.095253]
[1765724927297,0.68,130.99,130.97,0.67]
[1765724927896,16.67368213,131.0,130.97,0.67]
[1765724928933,20.46322381,131.0,130.97,0.67]
[1765724931098,0.68,130.99,130.96,12.095253]
[1765724931500,0.68,130.99,130.96,11.425253]
[1765724931696,15.99368213,131.0,130.97,0.67]
[1765724932020,16.67368213,131.0,130.97,0.67]
[1765724932809,8.36,131.0,130.97,12.09478502]
[1765724933194,9.04,131.0,130.97,12.09478502]
[1765724933395,8.36,131.0,130.97,29.14871267]
[1765724933595,8.36,131.0,130.98,3.09512849]
[1765724934517,8.36,131.0,130.99,0.67]
[1765724934716,8.36,131.0,130.99,8.30417054]
[1765724935214,0.68,131.01,130.98,8.30462984]
[1765724935419,3.10512849,131.01,130.98,7.63462984]
[1765724935629,3.10512849,131.01,130.98,8.30462984]
[1765724937022,0.68,131.01,130.98,8.30462984]
[1765724941035,0.68,131.01,130.98,10.72963845]
[1765724941334,8.31302995,131.01,130.98,7.63462984]
[1765724941517,2.42500861,130.99,130.95,7.63643894]
[1765724941720,8.36,131.0,130.93,10.06241187]
[1765724941721,10.78500861,130.98,130.93,10.06241187]
[1765724941919,2.42500861,130.96,130.92,10.77290174]
[1765724942225,8.36,130.95,130.92,10.77290174]
[1765724942434,9.04,130.95,130.92,10.77290174]
[1765724942643,0.68,130.94,130.92,10.06290174]
[1765724942809,0.68,130.94,130.92,7.63789313]
[1765724943814,0.68,130.94,130.91,7.83862016]
[1765724944038,10.74226181,130.94,130.91,0.2]
[1765724944209,2.42500861,130.93,130.91,0.2]
[1765724944413,9.04,130.92,130.91,0.2]
[1765724948023,8.36,130.92,130.91,3.33500861]
[1765724948238,8.36,130.92,130.91,0.2]
[1765724949219,8.36,130.92,130.91,0.91]
[1765724949426,8.36,130.92,130.91,7.83883584]
[1765724950027,8.36,130.92,130.91,0.2]
[1765724951140,0.68,130.92,130.91,0.2]
[1765724951509,9.04,130.92,130.91,0.2]
[1765724952352,8.36,130.92,130.91,7.83883584]
[1765724953028,8.36,130.92,130.91,8.54883584]
[1765724953411,8.36,130.92,130.91,7.83883584]
[1765724953841,8.36,130.92,130.91,0.2]
[1765724955860,11.46500861,130.92,130.87,0.2]
[1765724956159,2.42500861,130.88,130.87,0.2]
[1765724956353,10.78500861,130.88,130.87,0.2]
[1765724956659,11.46500861,130.88,130.87,0.2]
[1765724957159,9.04,130.88,130.87,0.2]
[1765724957341,11.46500861,130.88,130.87,0.2]
[1765724957729,19.1055954,130.88,130.87,0.2]
[1765724961564,21.53060401,130.88,130.86,0.2]
[1765724961859,27.67137648,130.87,130.86,0.2]
[1765724962046,35.3125471,130.87,130.86,0.2]
[1765724962252,13.0470912,130.84,130.83,0.2]
[1765724962458,23.83209981,130.84,130.83,0.2]
[1765724962660,24.51209981,130.84,130.83,0.2]
[1765724963262,33.32204473,130.84,130.83,0.2]
[1765724963457,33.60636787,130.84,130.83,0.2]
[1765724964035,41.24929052,130.84,130.83,0.2]
[1765724964235,32.15502246,130.84,130.83,0.2]
[1765724964645,8.32292265,130.84,130.83,0.2]
[1765724964862,19.10793126,130.84,130.83,0.2]
[1765724965183,16.68292265,130.84,130.83,0.2]
[1765724966546,8.36,130.84,130.83,0.2]
[1765724966752,8.36,130.84,130.83,0.9]
[1765724969075,8.36,130.84,130.83,0.2]
[1765724970678,19.13793126,130.84,130.83,0.2]
[1765724973766,40.99496738,130.84,130.83,0.2]
[1765724973959,41.27929052,130.84,130.83,0.2]
[1765724974154,13.0470912,130.8,130.78,0.1]
[1765724974498,10.80500861,130.79,130.78,0.1]
[1765724974657,11.51500861,130.79,130.78,0.1]
[1765724974855,19.16085309,130.79,130.78,0.1]
[1765724975684,19.17010697,130.79,130.78,0.1]
[1765724976183,16.73584448,130.79,130.78,0.1]
[1765724976354,19.17010697,130.79,130.78,0.1]
[1765724979687,28.26437503,130.79,130.78,0.1]
[1765724979878,9.09426806,130.78,130.77,0.2]
[1765724980065,27.00988424,130.77,130.76,0.1]
[1765724980381,27.00988424,130.77,130.75,0.1]
[1765724980382,9.09426806,130.76,130.74,0.1]
[1765724980584,10.81426249,130.75,130.74,0.1]
[1765724980885,8.38,130.75,130.74,0.1]
[1765724981089,8.38,130.75,130.74,0.76]
[1765724981667,10.81426249,130.75,130.74,0.1]
[1765724982268,8.38,130.75,130.74,0.76]
[1765724985414,19.17244604,130.75,130.74,0.1]
[1765724986310,21.60670853,130.75,130.74,0.1]
[1765724986704,30.70097659,130.75,130.74,0.1]
[1765724987577,43.74806779,130.75,130.74,0.1]
[1765724988201,22.14135926,130.73,130.72,0.1]
[1765724988406,32.95562175,130.73,130.72,0.1]
[1765724988610,33.66562175,130.73,130.72,0.1]
[1765724989385,44.97397137,130.73,130.72,0.1]
[1765724990901,31.92688017,130.73,130.72,1e-08]
[1765724991288,22.14135926,130.71,130.7,0.1]
[1765724991497,27.52034969,130.71,130.7,0.76]
[1765724991698,6.09325849,130.72,130.7,0.76]
[1765724991915,8.38,130.71,130.7,0.76]
[1765724992989,8.38,130.73,130.7,0.76]
[1765724993217,8.38,130.73,130.7,8.41110941]
[1765724993609,8.38,130.73,130.71,0.66]
[1765724993909,13.74164568,130.75,130.71,0.66]
[1765724993910,8.38,130.74,130.71,0.66]
[1765724994934,22.12210293,130.74,130.71,0.66]
[1765724995092,6.09325849,130.72,130.7,0.1]
[1765724995424,18.27633607,130.72,130.7,0.76]
[1765724996018,8.38,130.72,130.7,0.76]
[1765724996718,25.92647219,130.72,130.7,0.1]
[1765724996924,25.92647219,130.72,130.7,0.75]
[1765724997101,25.92647219,130.72,130.7,0.1]
[1765724997288,9.89633607,130.71,130.7,0.1]
[1765724997906,16.70013612,130.72,130.7,0.1]
[1765724998103,9.89633607,130.71,130.7,0.1]
[1765724998427,17.54686013,130.71,130.7,0.1]
[1765724999425,7.65052406,130.71,130.7,0.1]
[1765724999596,25.92642292,130.72,130.7,0.75]
[1765724999918,8.38,130.72,130.7,0.75]
[1765725000162,22.94342727,130.75,130.7,10.64633607]
[1765725000291,17.54352269,130.77,130.72,7.6499388]
[1765725000495,8.38,130.76,130.72,7.6499388]
[1765725000713,18.27633607,130.76,130.73,0.65]
[1765725000917,9.89633607,130.75,130.73,0.65]
[1765725001316,18.27633607,130.74,130.71,0.65]
[1765725001501,9.89633607,130.73,130.71,0.65]
[1765725001699,8.38,130.72,130.71,0.65]
[1765725002505,8.38,130.74,130.71,0.65]
[1765725002699,8.38,130.74,130.71,8.30052406]
[1765725002904,8.38,130.74,130.72,0.65]
[1765725003928,8.38,130.74,130.72,10.54633607]
[1765725004127,8.38,130.76,130.72,10.54633607]
[1765725004337,8.38,130.76,130.73,8.29917453]
[1765725004836,8.38,130.76,130.74,0.65]
[1765725005800,8.38,130.76,130.74,8.29873168]
[1765725006209,104.6,130.77,130.75,0.65]
[1765725006612,18.27633607,130.78,130.75,0.65]
[1765725007131,8.38,130.78,130.75,0.65]
[1765725007716,8.38,130.78,130.75,10.54633607]
[1765725007928,8.38,130.78,130.76,7.64759865]
[1765725008128,8.38,130.78,130.76,8.29759865]
[1765725008326,17.54186313,130.8,130.77,0.65]
[1765725008523,17.54186313,130.8,130.72,21.4270912]
[1765725008524,9.89633607,130.78,130.75,0.65]
[1765725008923,9.89633607,130.78,130.75,8.29814505]
[1765725009128,8.38,130.8,130.75,18.19448112]
[1765725009309,18.27633607,130.8,130.76,0.65]
[1765725009503,8.38,130.8,130.76,0.65]
[1765725009724,16.02530028,130.8,130.76,0.65]
[1765725010037,16.02530028,130.8,130.76,8.29748821]
[1765725010328,25.92163635,130.8,130.76,8.29748821]
[1765725010534,16.02530028,130.8,130.77,0.65]
[1765725010836,25.90981969,130.8,130.77,0.65]
[1765725011441,19.82702592,130.8,130.77,0.65]
[1765725012718,8.38,130.8,130.77,8.2967129]
[1765725013041,8.38,130.8,130.78,0.65]
[1765725013909,3.80172564,130.82,130.79,7.64584448]
[1765725014110,12.18172564,130.82,130.79,7.64584448]
[1765725014327,8.38,130.82,130.8,0.65]
[1765725014526,3.80172564,130.81,130.76,16.67723633]
[1765725014707,104.6,130.81,130.75,7.64805224]
[1765725014910,3.80172564,130.78,130.75,8.29805224]
[1765725015110,3.80172564,130.78,130.76,0.65]
[1765725015340,8.38,130.79,130.76,0.65]
[1765725015545,3.80172564,130.77,130.75,0.65]
[1765725016325,11.44886765,130.77,130.73,16.67913875]
[1765725016517,3.80172564,130.76,130.73,16.67913875]
[1765725016718,12.18172564,130.76,130.73,0.65]
[1765725017818,3.80172564,130.75,130.71,8.30035028]
[1765725018046,3.80172564,130.75,130.72,0.65]
[1765725019355,12.11993037,130.75,130.72,0.65]
[1765725020247,3.80172564,130.74,130.72,0.65]
[1765725020839,12.11993037,130.75,130.72,0.65]
[1765725021352,18.21103862,130.75,130.72,0.65]
[1765725021754,10.56283389,130.74,130.7,0.75]
[1765725021953,9.89283389,130.72,130.7,0.1]
[1765725022165,18.94283389,130.73,130.7,0.1]
[1765725022460,18.27283389,130.73,130.7,0.75]
[1765725022875,8.38,130.73,130.7,0.75]
[1765725023168,8.38,130.73,130.7,8.40103935]
[1765725023728,8.38,130.73,130.71,0.65]
[1765725024568,16.02943306,130.73,130.71,0.65]
[1765725024754,25.92226695,130.73,130.7,0.1]
[1765725025067,38.06621796,130.73,130.7,0.1]
[1765725025769,38.06621796,130.73,130.7,0.75]
[1765725025958,9.89283389,130.72,130.7,0.75]
[1765725026360,9.89283389,130.72,130.7,0.1]
[1765725026581,10.60283389,130.72,130.7,0.1]
[1765725027041,7.65052406,130.71,130.7,0.1]
[1765725027241,17.54285737,130.72,130.7,0.77]
[1765725028134,17.54285737,130.72,130.7,0.1]
[1765725028865,8.38,130.71,130.7,0.1]
[1765725029242,18.27283389,130.71,130.7,0.1]
[1765725029669,8.38,130.71,130.7,0.1]
[1765725029843,18.27283389,130.71,130.7,0.1]
[1765725030036,8.38,130.71,130.7,0.1]
[1765725030236,8.38,130.71,130.7,0.77]
[1765725030446,26.58335795,130.71,130.7,0.1]
[1765725032144,8.38,130.71,130.7,0.77]
[1765725033162,8.38,130.71,130.7,0.1]
[1765725034367,8.38,130.71,130.7,0.77]
[1765725034970,16.03052406,130.71,130.7,0.1]
[1765725035178,8.38,130.71,130.7,0.77]
[1765725036172,8.38,130.73,130.7,8.42110941]
[1765725036569,8.38,130.73,130.71,0.67]
[1765725038095,8.38,130.73,130.71,8.32026554]
[1765725038577,8.38,130.73,130.71,0.67]
[1765725038773,16.02935728,130.73,130.71,0.67]
[1765725039090,8.38,130.73,130.71,0.67]
[1765725039463,25.9222347,130.73,130.7,0.77]
[1765725039666,16.02940081,130.73,130.7,0.77]
[1765725039864,8.38,130.73,130.7,0.77]
[1765725040095,8.38,130.73,130.7,8.42092831]
[1765725040291,8.38,130.73,130.7,18.3137622]
[1765725040493,8.38,130.73,130.71,0.67]
[1765725040671,7.64838083,130.75,130.71,0.67]
[1765725040989,16.02838083,130.75,130.71,10.56283389]
[1765725041397,16.02838083,130.75,130.72,0.67]
[1765725042598,8.38,130.75,130.73,9.89283389]
[1765725042897,8.38,130.78,130.74,9.89283389]
[1765725043104,8.38,130.78,130.75,9.89283389]
[1765725043400,8.38,130.78,130.75,3.80213276]
[1765725043582,8.38,130.78,130.76,0.67]
[1765725043973,0.66,130.77,130.73,4.47213276]
[1765725044364,0.66,130.77,130.74,0.67]
[1765725044574,8.38,130.76,130.73,0.67]
[1765725044983,9.04,130.76,130.73,0.67]
[1765725045531,8.30606226,130.79,130.74,3.80213276]
[1765725045741,8.38,130.78,130.75,3.80213276]
[1765725045898,8.38,130.78,130.75,11.45006255]
[1765725046090,8.38,130.78,130.76,0.67]
[1765725046494,8.38,130.78,130.76,4.47213276]
[1765725046695,7.64585806,130.79,130.77,0.67]
[1765725047091,0.66,130.78,130.75,8.31792979]
[1765725047618,8.30585806,130.79,130.76,0.67]
[1765725047813,12.10761206,130.79,130.75,8.31811628]
[1765725048621,0.66,130.78,130.74,12.12034919]
[1765725048814,109.061754,130.78,130.74,8.31859519]
[1765725049026,109.061754,130.78,130.74,0.67]
[1765725049186,4.461754,130.77,130.73,16.02917986]
[1765725049391,12.841754,130.77,130.73,8.31917986]
[1765725050029,20.48894981,130.77,130.73,7.64917986]
[1765725050199,20.48894981,130.77,130.74,0.67]
[1765725050704,20.48894981,130.77,130.73,8.31917986]
[1765725051228,20.48894981,130.77,130.74,0.67]
[1765725051727,0.66,130.76,130.73,0.67]
[1765725052321,105.26,130.76,130.73,0.67]
[1765725054489,112.90776588,130.76,130.73,0.67]
[1765725056312,112.90776588,130.76,130.73,8.31931952]
[1765725056514,104.6,130.76,130.73,11.45107352]
[1765725056720,104.6,130.76,130.74,0.7]
[1765725057119,104.6,130.76,130.74,4.501754]
[1765725057438,104.6,130.76,130.74,3.13366246]
[1765725057630,104.6,130.76,130.75,0.7]
[1765725058236,104.6,130.76,130.75,10.78184601]
[1765725060544,32.1594086,130.81,130.75,10.78184601]
[1765725060545,8.3141336,130.82,130.75,45.38305856]
[1765725060751,8.38,130.81,130.79,2.43366246]
[1765725061259,8.38,130.81,130.79,3.13366246]
[1765725061649,104.6,130.83,130.8,0.7]
[1765725061840,112.98,130.83,130.8,0.7]
[1765725062245,112.98,130.83,130.8,3.13366246]
[1765725062447,8.38,130.83,130.81,7.64467548]
[1765725062762,8.38,130.83,130.81,8.34467548]
[1765725063066,8.38,130.83,130.81,0.7]
[1765725063760,0.67,130.82,130.78,7.64635171]
[1765725063968,3.10366246,130.82,130.78,8.34635171]
[1765725064734,0.67,130.82,130.78,10.08001417]
[1765725065034,0.67,130.82,130.79,0.7]
[1765725066837,0.67,130.82,130.79,8.3456809]
[1765725067038,105.27,130.82,130.79,8.3456809]
[1765725067939,105.27,130.82,130.8,0.7]
[1765725067940,104.6,130.82,130.8,0.7]
[1765725068145,104.6,130.82,130.81,2.43366246]
[1765725068466,104.6,130.82,130.81,3.13366246]
[1765725068668,104.6,130.82,130.81,0.7]
[1765725069649,104.6,130.82,130.81,8.34467548]
[1765725070250,104.6,130.82,130.81,10.77833794]
[1765725070852,104.6,130.82,130.81,0.7]
[1765725071060,104.6,130.82,130.8,10.77871903]
[1765725071680,104.6,130.82,130.81,8.34467548]
[1765725074587,104.6,130.82,130.81,7.64467548]
[1765725074939,104.6,130.82,130.81,8.34467548]
[1765725076756,104.6,130.82,130.81,10.77833794]
[1765725077074,104.6,130.82,130.81,8.34467548]
[1765725077275,104.6,130.82,130.81,10.77833794]
[1765725077480,104.6,130.82,130.81,7.64467548]
[1765725080990,104.6,130.82,130.81,10.77833794]
[1765725082362,104.6,130.82,130.81,10.77575911]
[1765725084769,8.38,130.84,130.81,10.77575911]
[1765725084960,9.05,130.84,130.81,10.77575911]
[1765725089179,0.67,130.83,130.81,2.43108363]
[1765725089499,9.05,130.84,130.81,0.71]
[1765725090382,9.05,130.84,130.81,3.14108363]
[1765725090683,9.05,130.84,130.82,7.64409111]
[1765725091491,9.05,130.84,130.82,8.32409111]
[1765725092096,9.05,130.84,130.82,7.64409111]
[1765725092501,0.72,130.83,130.81,7.64467548]
[1765725092700,0.72,130.83,130.81,8.32467548]
[1765725094405,9.1,130.84,130.81,8.32467548]
[1765725095296,9.1,130.84,130.82,0.68]
[1765725095902,9.1,130.84,130.81,7.64467548]
[1765725096097,9.1,130.84,130.81,8.32467548]
[1765725096405,0.72,130.83,130.8,10.75627231]
[1765725096578,0.72,130.83,130.8,8.32518868]
[1765725098601,0.72,130.83,130.8,7.64518868]
[1765725098804,8.38,130.82,130.78,10.7571303]
[1765725099198,0.72,130.81,130.78,10.7571303]
[1765725099909,0.72,130.81,130.78,8.32604667]
[1765725100913,8.36482731,130.81,130.78,7.64604667]
[1765725101093,10.79591094,130.81,130.77,7.64685121]
[1765725101288,0.72,130.8,130.78,7.64622022]
[1765725101608,16.02435832,130.82,130.78,8.32622022]
[1765725101609,18.45544195,130.82,130.78,8.32622022]
[1765725101799,0.72,130.8,130.78,8.32622022]
[1765725102915,0.72,130.8,130.78,7.64622022]
[1765725104318,0.72,130.8,130.75,0.68]
[1765725104319,2.43108363,130.79,130.75,0.68]
[1765725104707,3.15108363,130.78,130.75,7.64794249]
[1765725104912,3.15108363,130.78,130.74,19.12116219]
[1765725104913,3.15108363,130.78,130.74,0.68]
[1765725105087,0.72,130.77,130.74,8.32861388]
[1765725105520,3.15108363,130.77,130.74,8.32861388]
[1765725106425,0.72,130.77,130.74,8.32861388]
[1765725106610,10.81108363,130.79,130.75,0.68]
[1765725106919,9.1,130.79,130.75,0.68]
[1765725107119,9.1,130.79,130.75,3.11108363]
[1765725107320,9.1,130.79,130.76,0.68]
[1765725107896,0.72,130.78,130.75,7.64797953]
[1765725108119,0.72,130.78,130.75,8.32797953]
[1765725108330,19.17696071,130.79,130.76,0.68]
[1765725108633,0.72,130.78,130.72,20.69668451]
[1765725108816,13.0470912,130.76,130.7,0.78]
[1765725109017,2.43108363,130.73,130.7,0.78]
[1765725109242,9.1,130.75,130.7,0.78]
[1765725109524,9.1,130.75,130.7,8.43099645]
[1765725109707,9.1,130.75,130.7,10.86208008]
[1765725109908,9.1,130.75,130.71,3.11108363]
[1765725110106,9.1,130.75,130.71,0.68]
[1765725110404,9.1,130.75,130.72,0.68]
[1765725110616,0.72,130.74,130.71,0.68]
[1765725111110,3.15108363,130.74,130.7,0.78]
[1765725111314,3.15108363,130.74,130.7,8.43110657]
[1765725111646,0.72,130.73,130.7,0.1]
[1765725111842,18.46153557,130.72,130.7,0.1]
[1765725112326,0.72,130.71,130.7,0.1]
[1765725114039,18.46153557,130.72,130.7,0.1]
[1765725114203,8.38,130.72,130.7,0.1]
[1765725114405,16.75000429,130.72,130.7,0.1]
[1765725115634,0.72,130.71,130.7,0.1]
[1765725116350,17.90925846,130.7,130.69,0.1]
[1765725116714,0.66,130.7,130.68,0.1]
[1765725116918,8.38,130.69,130.68,0.1]
[1765725117115,8.38,130.69,130.68,0.8]
[1765725117349,8.38,130.69,130.68,0.1]
[1765725117508,9.04,130.71,130.68,0.8]
[1765725117831,8.38,130.71,130.68,8.45218507]
[1765725118014,8.38,130.71,130.68,12.2586119]
[1765725118215,7.64989552,130.73,130.69,4.50642683]
[1765725118421,16.68989552,130.73,130.69,4.50642683]
[1765725118736,16.68989552,130.73,130.7,0.7]
[1765725119237,9.04,130.73,130.7,0.7]
[1765725119620,12.11685148,130.72,130.68,0.1]
[1765725119818,12.11685148,130.72,130.68,0.8]
[1765725120625,8.31042465,130.72,130.68,4.60642683]
[1765725121149,20.49595118,130.73,130.69,0.7]
[1765725121324,4.46642683,130.72,130.69,0.7]
[1765725121530,4.46642683,130.72,130.68,0.1]
[1765725121730,12.11677872,130.72,130.68,0.8]
[1765725121954,4.46642683,130.71,130.68,0.1]
[1765725122267,0.66,130.71,130.68,0.8]
[1765725122464,16.02950672,130.73,130.69,3.80642683]
[1765725122621,16.02950672,130.73,130.68,8.45224008]
[1765725122622,16.68950672,130.73,130.68,8.45224008]
[1765725122823,19.83593355,130.73,130.69,0.7]
[1765725123046,0.66,130.72,130.69,0.7]
[1765725123247,16.68950672,130.73,130.69,0.7]
[1765725123447,20.49593355,130.73,130.69,0.7]
[1765725123653,104.6,130.72,130.69,0.7]
[1765725123942,104.6,130.72,130.69,8.35167861]
[1765725124141,104.6,130.72,130.7,0.7]
[1765725124742,104.6,130.72,130.7,4.50642683]
[1765725124942,8.38,130.73,130.71,0.7]
[1765725127965,8.38,130.73,130.71,8.35039543]
[1765725128167,20.69537066,130.75,130.72,0.7]
[1765725128371,8.38,130.75,130.72,0.7]
[1765725128541,104.6,130.76,130.73,3.80642683]
[1765725128733,8.38,130.77,130.74,4.50642683]
[1765725128932,8.38,130.77,130.74,0.7]
[1765725129859,9.04,130.77,130.74,0.7]
[1765725130058,8.38,130.77,130.74,0.7]
[1765725131178,12.18642683,130.77,130.74,0.7]
[1765725131466,12.84642683,130.77,130.74,0.7]
[1765725131867,3.80642683,130.76,130.72,7.64984077]
[1765725132028,4.46642683,130.76,130.72,8.34984077]
[1765725132363,4.46642683,130.76,130.73,0.7]
[1765725132560,16.02725946,130.77,130.73,8.34930522]
[1765725132744,0.66,130.76,130.73,8.34930522]
[1765725134466,20.49368629,130.77,130.73,8.34930522]
[1765725134663,16.02725946,130.77,130.73,7.64930522]
[1765725134864,7.64664803,130.78,130.74,4.50642683]
[1765725135070,135.82914765,130.78,130.73,11.45573205]
[1765725135270,3.80642683,130.76,130.72,8.34969307]
[1765725135589,12.18642683,130.76,130.72,8.34969307]
[1765725135788,0.66,130.75,130.72,0.7]
[1765725135994,4.46642683,130.75,130.72,0.7]
[1765725136161,0.66,130.75,130.72,0.7]
[1765725136787,19.83451745,130.76,130.72,8.34986606]
[1765725137087,20.49451745,130.76,130.72,8.34986606]
[1765725139685,20.49451745,130.76,130.73,0.7]
[1765725139891,16.68809062,130.76,130.73,0.7]
[1765725140466,9.04,130.76,130.73,0.7]
[1765725140667,16.68769894,130.76,130.73,0.7]
[1765725141573,8.38,130.76,130.73,0.7]
[1765725141779,8.38,130.76,130.73,8.34883392]
[1765725141963,8.38,130.76,130.73,12.15526075]
[1765725142160,8.38,130.76,130.74,0.7]
[1765725142791,8.38,130.76,130.73,12.15526075]
[1765725143606,8.38,130.76,130.74,0.7]
[1765725144582,16.68767662,130.76,130.73,8.34934768]
[1765725144806,16.02767662,130.76,130.74,0.7]
[1765725145304,8.38,130.76,130.74,0.7]
[1765725146902,8.38,130.76,130.74,8.34870629]
[1765725147793,8.38,130.76,130.74,0.7]
[1765725148571,9.07,130.76,130.73,8.33909364]
[1765725150106,8.38,130.76,130.74,0.69]
[1765725151007,8.38,130.76,130.74,8.33839982]
[1765725151391,8.38,130.76,130.75,0.69]
[1765725152110,104.6,130.77,130.75,0.69]
[1765725152485,105.29,130.77,130.75,0.69]
[1765725153105,105.29,130.77,130.74,8.33839982]
[1765725158301,105.29,130.77,130.75,0.69]
[1765725159204,105.29,130.77,130.74,8.33839982]
[1765725159714,112.24708607,130.77,130.74,8.33839982]
[1765725159921,0.69,130.76,130.74,8.33839982]
[1765725160085,0.69,130.76,130.74,7.64839982]
[1765725160281,112.24708607,130.77,130.74,8.33876484]
[1765725160490,112.93708607,130.77,130.74,0.69]
[1765725160920,104.6,130.77,130.74,8.33859137]
[1765725161102,105.29,130.77,130.74,8.33859137]
[1765725163418,105.29,130.77,130.75,0.69]
[1765725164591,105.29,130.77,130.74,12.14150591]
[1765725164892,105.29,130.77,130.75,0.69]
[1765725165194,105.29,130.77,130.74,12.14150591]
[1765725167632,104.6,130.77,130.75,0.69]
[1765725169039,105.29,130.77,130.75,0.69]
[1765725170043,105.29,130.77,130.75,8.33795035]
[1765725170838,105.29,130.77,130.75,7.64795035]
[1765725171504,104.6,130.77,130.75,7.64795035]
[1765725171700,105.29,130.77,130.75,8.33795035]
[1765725172930,105.29,130.77,130.75,7.64795035]
[1765725173644,105.29,130.77,130.75,8.33795035]
[1765725174347,104.6,130.77,130.75,8.33795035]
[1765725175539,105.29,130.77,130.75,8.33795035]
[1765725180046,104.6,130.77,130.75,8.33795035]
[1765725180749,105.32,130.77,130.75,7.64795035]
[1765725180952,105.32,130.77,130.75,8.32795035]
[1765725181937,104.6,130.77,130.75,8.32795035]
[1765725182256,105.32,130.77,130.75,8.32795035]
[1765725183055,105.32,130.77,130.75,7.64795035]
[1765725183359,105.32,130.77,130.75,0.68]
[1765725183543,105.32,130.77,130.75,8.32811177]
[1765725183742,104.6,130.77,130.75,8.32811177]
[1765725183941,105.32,130.77,130.75,8.32811177]
[1765725185758,104.6,130.77,130.75,7.64811177]
[1765725186058,104.6,130.77,130.75,10.76172847]
[1765725186256,104.6,130.77,130.75,8.32811177]
[1765725188135,105.32,130.77,130.75,8.32811177]
[1765725188342,104.6,130.77,130.75,8.32811177]
[1765725188761,104.6,130.77,130.76,0.68]
[1765725189067,104.6,130.81,130.76,3.11350443]
[1765725189267,9.1,130.81,130.78,2.43350443]
[1765725189760,9.1,130.81,130.78,3.11350443]
[1765725190137,9.1,130.81,130.78,10.7597413]